Cogmind - Beta 15 @@@ ROGUE MODE // 2025.06.23 @ 13:57:35 Player: CheifClapdad Result: Destroyed by BC-NTV(R) with Subdweller Laser Performance ------------- Evolutions (0) 0 Regions Visited (3) 600 Robots Destroyed (11) 55 Value Destroyed (329) 329 Prototype IDs (0) 0 Alien Tech Used (0) 0 Bonus (0) 0 TOTAL SCORE: 984 Bonus ------- None Cogmind --------- Core Integrity 0/250 Matter 227/300 Energy 100/100 System Corruption 0% Temperature Cool (6) Movement Treading (320) Ox2 Location -10/Subcaves Parts ------- > --- POWER (1) -------- (None) > --- PROPULSION (2) --- Light Treads Compact Wheel > --- UTILITY (2) ------ High-capacity Storage Unit Targeting Computer > --- WEAPON (2) ------- Assault Rifle Light Assault Rifle > --- INVENTORY (20) --- Ion Engine Ion Engine Ion Engine Light Ion Engine Wheel Wheel Compact Wheel Compact Wheel Large Storage Unit Targeting Computer Targeting Computer Targeting Computer Targeting Computer Targeting Computer Light Armor Plating Assault Rifle Peak State ------------ > --- POWER ------------ Ion Engine > --- PROPULSION ------- Light Treads Compact Wheel > --- UTILITY ---------- Large Storage Unit Targeting Computer > --- WEAPON ----------- Light Assault Rifle Light Cannon > --- INVENTORY -------- Ion Engine Light Treads Wheel Wheel Compact Wheel Targeting Computer Targeting Computer Targeting Computer Targeting Computer Targeting Computer [Rating: 8] Favorites ----------- Power Ion Engine Engine Ion Engine Propulsion Compact Wheel Treads Light Treads Wheel Compact Wheel Utility Targeting Computer Storage High-capacity Storage Unit Processor Targeting Computer Weapon Light Cannon Ballistic Gun Light Assault Rifle Ballistic Cannon Light Cannon Build | -11 -10 -10 -10 ------- Run | Yrd Mat Min Sub Slots Evolved . | . . . . Power . | . . . . Propulsion . | . . . . Utility . | . . . . Weapon . | . . . . Parts Attached 12 | 6 4 . 2 Power 1 | 1 . . . Engine 1 | 1 . . . Core . | . . . . Reactor . | . . . . Propulsion 3 | 2 . . 1 Treads 2 | 1 . . 1 Leg . | . . . . Wheel 1 | 1 . . . Hover . | . . . . Flight . | . . . . Utility 4 | 1 3 . . Device . | . . . . Storage 3 | 1 2 . . Processor 1 | . 1 . . Hackware . | . . . . Protection . | . . . . Artifact . | . . . . Weapon 4 | 2 1 . 1 Energy Gun . | . . . . Energy Cannon . | . . . . Ballistic Gun 3 | 2 . . 1 Ballistic Cannon 1 | . 1 . . Launcher . | . . . . Special Weapon . | . . . . Impact Weapon . | . . . . Slashing Weapon . | . . . . Piercing Weapon . | . . . . Special Melee Weapon . | . . . . Unidentified Prototypes . | . . . . Parts Lost 4 | . 1 . 3 Power 1 | . . . 1 Propulsion 1 | . . . 1 Utility . | . . . . Weapon 2 | . 1 . 1 Highest Loss Streak 2 | . 1 . 2 To Critical Strikes . | . . . . Average Backups 11 | 1 8 16 17 Power 2 | . 1 3 4 Propulsion 3 | . 3 4 4 Utility 4 | . 3 7 7 Weapon 1 | . 1 2 1 Tool/Special . | . . . . Unused Backups 15 | . . . 15 Power 4 | . . . 4 Propulsion 4 | . . . 4 Utility 6 | . . . 6 Weapon 1 | . . . 1 Tool/Special . | . . . . Average Slot Usage (%) 96 | . 93 100 97 Engine 13 | . 14 14 12 Treads 13 | . 14 14 13 Wheel 14 | . 14 14 14 Storage 14 | . 14 14 14 Processor 10 | . 7 14 14 Ballistic Gun 15 | . 15 14 17 Ballistic Cannon 12 | . 12 14 10 Peak Build Rating 8 | 6 8 8 8 Average Rating 7 | 4 7 8 7 On Entrance 5 | . 6 8 8 Naked Turns . | . . . . Heaviest Build 49 | 13 49 49 49 Greatest Support 20 | 20 20 16 20 Greatest Overweight (x) 3 | . 3 3 3 Average Overweight (x) 1 | . 1 3 2 Largest Inventory Capacity 20 | 8 20 20 20 Average Capacity 16 | 6 14 20 20 Most Carried 18 | 3 15 18 18 Average Carried 11 | 1 8 17 17 Final Capacity 20 | 8 20 20 20 Final Carried 18 | 3 15 18 16 Class Distribution -------------------- 100% | Mutant Dominant Class ---------------- Mutant | -10/Materials Mutant | -10/Mines Mutant | -10/Subcaves Resources | -11 -10 -10 -10 ----------- Run | Yrd Mat Min Sub Matter Collected 554 | 237 228 85 4 Remotely . | . . . . Salvage Created 495 | . 243 252 . Parts 19 | . 12 7 . Haulers Intercepted . | . . . . Recyclers Shooed 1 | . . 1 . Parts Field Recycled . | . . . . Retrieved Matter . | . . . . Parts Self-Destructed . | . . . . Prevented . | . . . . Kills | -11 -10 -10 -10 ------- Run | Yrd Mat Min Sub Combat Hostiles Destroyed 8 | . 5 3 . Guns 5 | . 3 2 . Cannons 3 | . 2 1 . Classes Destroyed 2 | . 2 . . Recycler 3 | . 1 2 . Grunt 8 | . 5 3 . Best Kill Streak 3 | . 2 3 . Combat Bots Only 3 | . 2 3 . Max Kills in Single Turn 1 | . 1 1 . Gunslinging . | . . . . Exploded . | . . . . Melee . | . . . . Uniques/NPCs Destroyed . | . . . . Combat | -11 -10 -10 -10 -------- Run | Yrd Mat Min Sub Hostile Shots Fired 83 | . 30 25 28 Missed 22 | . 6 8 8 Hits 61 | . 24 17 20 Projectile 61 | . 24 17 20 Critical Strikes 1 | . . . 1 Damage Taken 978 | . 337 222 419 Core 268 | . 78 81 109 Absorbed by Shields . | . . . . Core Remaining (%) 100 | 100 . . . Volleys Fired 60 | . 24 17 19 Largest 2 | . 2 2 2 Hottest 50 | . 50 50 50 Shots Fired 118 | . 48 34 36 Gun 75 | . 24 17 34 Cannon 43 | . 24 17 2 Launcher . | . . . . Special . | . . . . Kinetic 118 | . 48 34 36 Thermal . | . . . . Explosive . | . . . . Electromagnetic . | . . . . Robot Hit Streak 13 | . 11 7 13 Robot Miss Streak 5 | . 5 2 2 Penetration Max . | . . . . Secondary Targets . | . . . . Shots Hit Robots 84 | . 35 24 25 Core Hits 22 | . 13 8 1 Critical Kills . | . . . . Critical Parts Destroyed . | . . . . Critical Strikes 3 | . 2 . 1 Destroy 1 | . . . 1 Blast 2 | . 2 . . Melee Attacks . | . . . . Impact . | . . . . Slashing . | . . . . Piercing . | . . . . Sneak Attacks . | . . . . Combat Hostiles . | . . . . Follow-up Attacks . | . . . . Damage Inflicted 811 | . 477 274 60 Guns 363 | . 218 102 43 Cannons 444 | . 255 172 17 Explosions . | . . . . Melee . | . . . . Ramming 4 | . 4 . . Kinetic 807 | . 473 274 60 Thermal . | . . . . Explosive . | . . . . Electromagnetic . | . . . . Impact . | . . . . Slashing . | . . . . Piercing . | . . . . Highest Corruption . | . . . . Average Corruption . | . . . . Corruption Purged . | . . . . Corruption Blocked . | . . . . Overload Shots . | . . . . Overflow Damage . | . . . . Projectiles . | . . . . Explosions . | . . . . Melee . | . . . . Knockbacks 9 | . 7 1 1 Impact . | . . . . Kinetic 8 | . 6 1 1 Secondary 1 | . 1 . . Self-Inflicted Damage 2 | . 2 . . Shots . | . . . . Rammed 1 | . 1 . . Targets Rammed 1 | . 1 . . Kicked . | . . . . Crushed . | . . . . Highest Temperature 79 | . 26 79 . Average Temperature 23 | . 8 36 . Received Heat Transfer 342 | . 180 126 36 Siege Activations . | . . . . Martial Activations . | . . . . Shielding Activations . | . . . . Robots Disrupted . | . . . . Combat Hostiles . | . . . . Robots Corrupted . | . . . . Combat Hostiles . | . . . . Parts Fried . | . . . . Impact Corruptions . | . . . . Robots Melted . | . . . . Combat Hostiles . | . . . . Parts Melted . | . . . . Heat Transferred . | . . . . Parts Sabotaged . | . . . . Parts Stolen . | . . . . Parts Stripped . | . . . . Power Chain Reactions . | . . . . Alert | -11 -10 -10 -10 ------- Run | Yrd Mat Min Sub Maximum Alert Level . | . . . . Low Security (%) 100 | 100 100 100 . Level 1 . | . . . . Level 2 . | . . . . Level 3 . | . . . . Level 4 . | . . . . Level 5 . | . . . . High Security . | . . . . Max Security . | . . . . Peak Influence 60 | . 40 60 . Initial . | . . . . Average 8 | . 6 13 . Influence Increases 216 | . 136 80 . Destroy 0b10 Robot/C 160 | . 100 60 . Destroy 0b10 Robot/NC 15 | . 5 10 . Destroy Leader 40 | . 30 10 . Destroy Structure 1 | . 1 . . Influence Decreases 216 | . 136 80 . Time Decay 206 | . 126 80 . Lost Part 10 | . 10 . . Squads Dispatched 1 | . 1 . . Investigation . | . . . . Extermination . | . . . . Reinforcement 1 | . 1 . . Assault . | . . . . Garrison . | . . . . Intercept . | . . . . Searches Triggered . | . . . . Construction Impeded . | . . . . Haulers Reinforced . | . . . . Active Scanning Responses . | . . . . Cargo Convoy Interrupts . | . . . . Stealth | -11 -10 -10 -10 --------- Run | Yrd Mat Min Sub Distress Signals . | . . . . Communications Jammed . | . . . . Distress Signals . | . . . . Times Spotted 16 | . 11 3 2 Peak Tracking Total 3 | . 2 3 2 Tactical Retreats . | . . . . Traps | -11 -10 -10 -10 ------- Run | Yrd Mat Min Sub Traps Triggered . | . . . . Indirectly . | . . . . Trap Hack Attempts . | . . . . Triggered . | . . . . Disarmed . | . . . . Reprogrammed . | . . . . Reused . | . . . . Traps Extracted . | . . . . Installed . | . . . . Triggered . | . . . . Machines | -11 -10 -10 -10 ---------- Run | Yrd Mat Min Sub Machines Disabled . | . . . . Max in Single Turn . | . . . . Machines Repaired . | . . . . Machines Dismantled . | . . . . Machines Sabotaged . | . . . . Overloaded Fab Kills . | . . . . Hacking | -11 -10 -10 -10 --------- Run | Yrd Mat Min Sub Machines Accessed . | . . . . Terminals . | . . . . Fabricators . | . . . . Repair Stations . | . . . . Recycling Units . | . . . . Scanalyzers . | . . . . Garrison Access . | . . . . Total Hacks . | . . . . Successful . | . . . . Failed . | . . . . Catastrophic . | . . . . Database Lockouts . | . . . . Manual . | . . . . Terminals . | . . . . Fabricators . | . . . . Repair Stations . | . . . . Recycling Units . | . . . . Scanalyzers . | . . . . Garrison Access . | . . . . Terminal Hacks . | . . . . Fabricator Hacks . | . . . . Repair Station Hacks . | . . . . Recycling Unit Hacks . | . . . . Scanalyzer . | . . . . Garrison Access Hacks . | . . . . Unauthorized Hacks . | . . . . Terminals . | . . . . Fabricators . | . . . . Repair Stations . | . . . . Recycling Units . | . . . . Scanalyzers . | . . . . Garrison Access . | . . . . Data Cores Recovered . | . . . . Used . | . . . . Hacking Detections . | . . . . Full Trace Events . | . . . . Feedback Events . | . . . . Feedback Blocked . | . . . . Robot Schematics Acquired . | . . . . Robots Built . | . . . . Authchips . | . . . . Time . | . . . . Total Robot Build Rating . | . . . . Part Schematics Acquired . | . . . . Parts Built . | . . . . Authchips . | . . . . Time . | . . . . Total Part Build Rating . | . . . . Parts Repaired . | . . . . Time . | . . . . Parts Recycled . | . . . . Recycled Matter . | . . . . Retrieved Matter . | . . . . Retrieved Components . | . . . . Parts Scanalyzed . | . . . . Part Schematics Acquired . | . . . . Parts Damaged . | . . . . Bothacking | -11 -10 -10 -10 ------------ Run | Yrd Mat Min Sub Used RIF Installer . | . . . . Robots Hacked . | . . . . Non-combat . | . . . . Combat . | . . . . Robot Hacks Applied . | . . . . Relay Couplers Released . | . . . . Fabnet Peak Effective % . | . . . . Robots Rewired . | . . . . Allies Hacked . | . . . . Hacks Repelled . | . . . . Allies | -11 -10 -10 -10 -------- Run | Yrd Mat Min Sub Total Allies . | . . . . Largest Group . | . . . . Highest-Rated Group . | . . . . Highest-Rated Ally . | . . . . Total Orders . | . . . . Ally Attacks . | . . . . Total Damage . | . . . . Kills . | . . . . Allies Corrupted . | . . . . Allies Melted . | . . . . Intel | -11 -10 -10 -10 ------- Run | Yrd Mat Min Sub Active Infowar (turns) . | . . . . Robot Analysis Total . | . . . . Derelict Logs Recovered . | . . . . Drone Launches . | . . . . Drone Recoveries . | . . . . Exploration | -11 -10 -10 -10 ------------- Run | Yrd Mat Min Sub Turns Passed 1350 | 97 679 331 243 Spaces Moved 716 | 63 404 118 131 Core 4 | 4 . . . Treads 158 | 42 115 . 1 Legs . | . . . . Wheels 554 | 17 289 118 130 Hover . | . . . . Flight . | . . . . Fastest Speed 50 | 50 115 145 130 Average Speed 141 | 136 139 145 145 Slowest Speed 320 | 160 160 145 320 Overloaded Moves . | . . . . Propulsion Burnouts . | . . . . Robots Hopped . | . . . . Potential Cave-ins . | . . . . Cave-ins Triggered . | . . . . Exploration Rate (%) 22 | 4 55 25 5 Regions Visited 3 Branch Regions 2 Pre-discovered Areas . | . . . . Known Exits Taken . | . . . . Unknown Exits Taken 3 | 1 1 1 . Scrap Searched 1 | . . 1 . Spaces Dug . | . . . . Terrain Destroyed . | . . . . Melee . | . . . . Projectile . | . . . . AOE . | . . . . Terrain Rammed . | . . . . Walls Destroyed . | . . . . Machines Disabled . | . . . . Actions | -11 -10 -10 -10 --------- Run | Yrd Mat Min Sub Total 940 | 71 470 247 152 Wait 134 | . 24 110 . Move 713 | 62 403 117 131 Hop . | . . . . Pick Up 18 | 3 12 3 . Fast Attach 8 | 6 2 . . Attach 3 | . 1 . 2 Detach . | . . . . Swap 2 | . 2 . . Drop 1 | . 1 . . Fire 60 | . 24 17 19 Melee . | . . . . Ram 1 | . 1 . . Kick . | . . . . Crush . | . . . . Escape Stasis . | . . . . Rewire . | . . . . Trap . | . . . . Miscellaneous . | . . . . Route ------- -11/Scrapyard -10/Materials (discovered 3 exits: [*Mat x2] / [*Min]) -10/Mines -10/Subcaves History --------- Turn | Location | Event 8 | -11/Scrapyard | Discovered new exit (range 16) 98 | -11/Scrapyard | Entered Materials 309 | -10/Materials | Build established: Mutant 375 | -10/Materials | Discovered new exit (range 16) 503 | -10/Materials | Discovered new exit (range 14) 620 | -10/Materials | Discovered new exit (range 13) 777 | -10/Materials | Entered Mines 794 | -10/Mines | Core integrity fell below 50% 1090 | -10/Mines | Discovered new exit (range 10) 1108 | -10/Mines | Entered Subcaves 1109 | -10/Subcaves | Approached by a straggling Scientist 1335 | -10/Subcaves | Core integrity fell below 20% 1351 | -10/Subcaves | Destroyed by BC-NTV(R) with Subdweller Laser Last Messages --------------- beginning to lose hope I'd never make it past all the Subs lurking out here." 01112_ KK-4NF(c): "Hey, let me tag along and I can get us both out of this nasty situation. At least I think I can... The group I got separated from was talking about a shortcut back to the UFD." KK-4NF(c): "I think it's somewhere southwest of here" KK-4NF(c): "I think it's somewhere south of here" 01285_ K6-XKA(R) knocked back. 01288_ Lgt. Cannon destroyed. 01293_ K6-XKA(R) suffers critical hit (Destroy). 01303_ Acquired 4 matter. KK-4NF(c): "I think it's somewhere southwest of here" 01328_ Lgt. Treads destroyed. 01334_ LX-OQQ(u) builds Twisted Machinery. 01335_ Ion Engine destroyed. Map ----- +----------------------------------------------------+ | ?????????????????????????????????????????????????? | | ?????????????????????????????????????????????????? | | ?????????????????????????????????????????????????? | | ?????????????????????????????????????????????????? | | ?????????????????????????????????????????????????? | | ?????????????????????????????????????????????????? | | ?????????????????????????????????????????????????? | | ?????????????????????????????????????????????????? | | ?????????????????????????????????????????????????? | | ?????????????????????????????????????????????????? | | ?????????????????????????????????????????????????? | | ?????????????????????????????????????????????????? | | ?????????????????????????????????????????????????? | | ???????????????????????????##?###????????????????? | | ?????????????????????????## ## ?????????????????? | | ??????#??????????????????# ??????????????????? | | ?????## ???###???????????#< ???????????????????? | | ?????# #### #??????????? #???????????????????? | | ????### ## #???????????#RR #???????????????????? | | ????# ### #??????????? #???????????????????? | | ???## ############# #???????????????????? | | ???# ## ##??????????????????? | | ???#### c ###????????????????? | | ??????###### ## # #### ?????????? | | ???????????# ### ## " ????????? | | ???????????## ### # # @ " #??????? | | ???????????# ## ##### # ####???????? | | ???????????### ## ## #????##% ##??????????? | | ?????????????####### ###% ##??? ??????????????? | | ???????????????????## ## #### ????????????????? | | ???????????????????# # ??????????????????? | | ???????????????????##### # #???????????????????? | | ???????????????????????# #???????????????????? | | ???????????????????????##### #???????????????????? | | ???????????????????????????# #???????????????????? | | ??????????????????????????## ##??????????????????? | | ??????????????????????????# #??????????????????? | | ??????????????????????????# #??????????????????? | | ??????????????????????????# #??????????????????? | | ??????????????????????????## ##?????????????????? | | ???????????????????????????# ##?##?????????????? | | ??????????????????????????## ## #?????????????? | | ??????????????????????????# % #### #???? | | ??????????????????????????## #???? | | ???????????????????????????###### ### #???? | | ????????????????????????????????#####????? ???? | | ?????????????????????????????????????????????????? | | ?????????????????????????????????????????????????? | | ?????????????????????????????????????????????????? | | ?????????????????????????????????????????????????? | +----------------------------------------------------+ Best States ------------- Heat Dissipation 25 Energy Generation 10 Energy Capacity 250 Matter Stores 300 Matter Capacity 300 Sight Range 16 Terrain Scan Density 10 Evasion (%) 40 Targeting Accuracy 5 Recoil Reduction 1 Item Schematics ----------------- None Robot Schematics ------------------ None Fabricated ------------ Nothing Repaired ---------- Nothing Alien Tech Used ----------------- None Achievements -------------- None Challenges ------------ None Game ------ Seed ServoDisruptorInverter Manual? 0 Play Time 00:07:41 Cumulative 90.3 hours Start 2025.06.23 @ 13:49:54 End 2025.06.23 @ 13:57:35 Sessions 1 Manual Loads 0 Difficulty Rogue Special Mode None Game No. 121 Rogue 121 Adventurer 0 Explorer 0 Win Type - Total 1 Types 1/0/0/0/0/0/0/0/0/0 Lore% 38 Gallery% 49 Achievement% 42 Wizard Run 0 Options --------- Layout 1 ASCII 0 Keyboard 0 Movement Arrows Keybinds 0 Fullscreen 1 Font 24/Smallcaps Map View 50x35 Zoom Use 0% Tactical HUD 1 Map Filters NONE Filters NONE Steam X RUN: 64fbfada-8768-4ca5-8735-8d61f92c00eb